lending/lending_fUSD_20251022
["ID","MTS","AMOUNT","RATE_DAILY","PERIOD"]
[392080921,1761137493091,-1004.91,0.00049589,120]
[392080922,1761137493101,-902.56,0.00049589,120]
[392080923,1761137493110,-797.64,0.00049589,120]
[392080924,1761137493119,-727.22,0.00049589,120]
[392080925,1761137493129,-596.43,0.00049589,30]
[392080926,1761137493139,-839.78,0.00049589,120]
[392080927,1761137493149,-1567.44,0.00049589,120]
[392080928,1761137493158,-978.8,0.00049589,120]
[392080929,1761137493167,-550.93,0.00049589,120]
[392080930,1761137493177,-1200.44,0.00049589,120]
[392080931,1761137493186,-804.93,0.00049589,120]
[392080932,1761137493196,-739.04,0.00049589,120]
[392080933,1761137493205,-771.06,0.00049589,120]
[392080934,1761137493215,-794.03,0.00049589,120]
[392080935,1761137493225,-1137.8,0.00049589,120]
[392080936,1761137493236,-935.82,0.00049589,120]
[392080937,1761137493246,-835.83,0.00049589,120]
[392080938,1761137493256,-1199.67,0.00049589,120]
[392080939,1761137493265,-696.26,0.00049589,120]
[392080940,1761137493275,-652.36,0.00049589,120]
[392080941,1761137493285,-1077.51,0.00049589,120]
[392080942,1761137493295,-1098.31,0.00049589,120]
[392080943,1761137493305,-866.75,0.00049589,120]
[392080944,1761137493315,-359.03586126,0.00049589,120]
[392080945,1761137493324,-899.21,0.00049589,120]
[392080946,1761137493334,-683.69,0.00049589,120]
[392080947,1761137493344,-901.18,0.00049589,120]
[392080948,1761137493355,-1139.36,0.00049589,120]
[392080949,1761137493364,-978.62,0.00049589,120]
[392080950,1761137493374,-503.85,0.00049589,120]
[392080951,1761137493384,-1709.15,0.00049589,120]
[392080952,1761137493394,-1255.83,0.00049589,120]
[392080953,1761137493404,-598.97,0.00049589,120]
[392080954,1761137493414,-913.64,0.00049589,2]
[392080955,1761137493424,-788.16,0.00049589,120]
[392080956,1761137493434,-572.17,0.00049589,120]
[392080957,1761137493443,-1172.27,0.00049589,120]
[392080958,1761137493453,-822.33,0.00049589,120]
[392080959,1761137493462,-940.37,0.00049589,120]
[392080960,1761137493473,-1208.24,0.00049589,120]
[392080961,1761137493486,-647.81,0.00049589,120]
[392080962,1761137493496,-903.67,0.00049589,120]
[392080963,1761137493506,-701.38,0.00049589,120]
[392080964,1761137493516,-726.04,0.00049589,120]
[392080965,1761137493526,-1257.65,0.00049589,120]
[392080966,1761137493535,-1171.07,0.00049589,120]
[392080967,1761137493545,-966.41,0.00049589,120]
[392080968,1761137493555,-500.0,0.00049589,120]
[392080969,1761137493564,-793.36,0.00049589,120]
[392080970,1761137493573,-838.16,0.00049589,120]
[392080971,1761137493583,-650.24,0.00049589,120]
[392080972,1761137493592,-739.64,0.00049589,120]
[392080973,1761137493602,-1537.31,0.00049589,120]
[392080974,1761137493611,-263.15,0.00049589,120]
[392080975,1761137493620,-1957.66,0.00049589,120]
[392080976,1761137493630,-500.0,0.00049589,120]
[392080977,1761137493640,-728.44,0.00049589,120]
[392080978,1761137493650,-1020.65,0.00049589,120]
[392080979,1761137493660,-558.68550792,0.00049589,120]
[392080980,1761137493670,-500.0,0.00049589,120]
[392080981,1761137493679,-1283.72,0.00049589,120]
[392080982,1761137493688,-507.24,0.00049589,120]
[392080983,1761137493697,-1791.81,0.00049589,120]
[392080984,1761137493707,-516.69,0.00049589,120]
[392080985,1761137493716,-774.46,0.00049589,120]
[392080986,1761137493726,-1704.96,0.00049589,120]
[392080987,1761137493735,-684.88,0.00049589,120]
[392080988,1761137493745,-903.57,0.00049589,120]
[392080989,1761137493754,-500.08,0.00049589,120]
[392080990,1761137493763,-1123.28,0.00049589,120]
[392080991,1761137493773,-976.02,0.00049589,120]
[392080992,1761137493785,-791.42,0.00049589,120]
[392080993,1761137493795,-1380.66,0.00049589,120]
[392080994,1761137493804,-777.97,0.00049589,120]
[392080995,1761137493814,-1069.18,0.00049589,120]
[392080996,1761137493823,-550.13,0.00049589,120]
[392080997,1761137493834,-657.62,0.00049589,120]
[392080998,1761137493843,-741.11,0.00049589,120]
[392080999,1761137493853,-546.69,0.00049589,120]
[392081000,1761137493866,-868.99,0.00049589,120]
[392081001,1761137493875,-749.46,0.00049589,120]
[392081002,1761137493884,-1632.62,0.00049589,120]
[392081003,1761137493897,-1268.92,0.00049589,120]
[392081004,1761137493904,-1515.76,0.00049589,120]
[392081005,1761137493912,-376.25356253,0.00049589,120]
[392081006,1761137493921,-1021.54,0.00049589,120]
[392081007,1761137493930,-822.83,0.00049589,120]
[392081008,1761137493940,-668.65,0.00049863,60]
[392081009,1761137493949,-504.28,0.00049863,120]
[392081010,1761137493958,-500.0,0.00049863,120]
[392081011,1761137493967,-678.16,0.00049863,120]
[392081012,1761137493978,-953.82,0.00049863,120]
[392081013,1761137493987,-1131.8,0.00049863,120]
[392081014,1761137493996,-538.28,0.00049863,120]
[392081015,1761137494006,-500.0,0.00049863,120]
[392081016,1761137494015,-1212.18,0.00049863,120]
[392081017,1761137494025,-971.57,0.00049863,120]
[392081018,1761137494034,-330.37,0.00049863,120]
[392081019,1761137494043,-506.07,0.00049863,120]
[392081020,1761137494053,-787.36,0.00049863,120]
[392081021,1761137494063,-654.91,0.00049863,120]
[392081022,1761137494073,-609.54,0.00049863,120]
[392081023,1761137494083,-1546.84,0.00049863,120]
[392081024,1761137494092,-512.22,0.00049863,120]
[392081025,1761137494102,-584.83,0.00049863,120]
[392081026,1761137494111,-537.03,0.00049863,120]
[392081027,1761137494121,-1006.19,0.00049863,120]
[392081028,1761137494131,-768.78,0.00049863,120]
[392081029,1761137494140,-515.05,0.00049863,120]
[392081030,1761137494150,-888.55,0.00049863,120]
[392081031,1761137494159,-1783.82,0.00049863,120]
[392081032,1761137494169,-1004.91,0.00049863,120]
[392081033,1761137494178,-902.56,0.00049863,120]
[392081034,1761137494188,-797.64,0.00049863,120]
[392081035,1761137494198,-727.22,0.00049863,120]
[392081036,1761137494207,-596.43,0.00049863,30]
[392081037,1761137494218,-839.78,0.00049863,120]
[392081038,1761137494228,-1567.44,0.00049863,120]
[392081039,1761137494238,-978.8,0.00049863,120]
[392081040,1761137494247,-550.93,0.00049863,120]
[392081041,1761137494257,-1200.44,0.00049863,120]
[392081042,1761137494266,-804.93,0.00049863,120]
[392081043,1761137494276,-739.04,0.00049863,120]
[392081044,1761137494286,-771.06,0.00049863,120]
[392081045,1761137494295,-794.03,0.00049863,120]
[392081046,1761137494304,-1137.8,0.00049863,120]
[392081047,1761137494314,-935.82,0.00049863,120]
[392081048,1761137494323,-835.83,0.00049863,120]
[392081049,1761137494332,-1199.67,0.00049863,120]
[392081050,1761137494342,-696.26,0.00049863,120]
[392081051,1761137494351,-652.36,0.00049863,120]
[392081052,1761137494362,-1077.51,0.00049863,120]
[392081053,1761137494373,-1098.31,0.00049863,120]
[392081054,1761137494479,-866.75,0.00049863,120]
[392081055,1761137494489,-899.21,0.00049863,120]
[392081056,1761137494498,-683.69,0.00049863,120]
[392081057,1761137494507,-901.18,0.00049863,120]
[392081058,1761137494517,-1139.36,0.00049863,120]
[392081059,1761137494527,-978.62,0.00049863,120]
[392081060,1761137494536,-503.85,0.00049863,120]
[392081061,1761137494547,-1709.15,0.00049863,120]
[392081062,1761137494557,-1255.83,0.00049863,120]
[392081063,1761137494567,-598.97,0.00049863,120]
[392081064,1761137494578,-913.64,0.00049863,2]
[392081065,1761137494589,-788.16,0.00049863,120]
[392081066,1761137494598,-572.17,0.00049863,120]
[392081067,1761137494607,-1172.27,0.00049863,120]
[392081068,1761137494617,-822.33,0.00049863,120]
[392081069,1761137494626,-940.37,0.00049863,120]
[392081070,1761137494635,-1208.24,0.00049863,120]
[392081071,1761137494645,-647.81,0.00049863,120]
[392081072,1761137494654,-903.67,0.00049863,120]
[392081073,1761137494663,-701.38,0.00049863,120]
[392081074,1761137494672,-726.04,0.00049863,120]
[392081075,1761137494681,-1257.65,0.00049863,120]
[392081076,1761137494690,-1171.07,0.00049863,120]
[392081077,1761137494700,-966.41,0.00049863,120]
[392081078,1761137494709,-500.0,0.00049863,120]
[392081079,1761137494718,-793.36,0.00049863,120]
[392081080,1761137494727,-838.16,0.00049863,120]
[392081081,1761137494737,-650.24,0.00049863,120]
[392081082,1761137494746,-739.64,0.00049863,120]
[392081083,1761137494755,-1537.31,0.00049863,120]
[392081084,1761137494763,-1957.66,0.00049863,120]
[392081085,1761137494773,-379.3527639,0.00049863,120]
[392081086,1761137494786,-728.44,0.00049863,120]
[392081087,1761137494795,-1020.65,0.00049863,120]
[392081088,1761137494805,-500.0,0.00049863,120]
[392081089,1761137494814,-1283.72,0.00049863,120]
[392081090,1761137494823,-507.24,0.00049863,120]
[392081091,1761137494832,-1791.81,0.00049863,120]
[392081092,1761137494841,-516.69,0.00049863,120]
[392081093,1761137494850,-1704.96,0.00049863,120]
[392081094,1761137494859,-774.46,0.00049863,120]
[392081095,1761137494868,-684.88,0.00049863,120]
[392081096,1761137494878,-903.57,0.00049863,120]
[392081097,1761137494887,-500.08,0.00049863,120]
[392081098,1761137494897,-1123.28,0.00049863,120]
[392081099,1761137494906,-976.02,0.00049863,120]
[392081100,1761137494916,-791.42,0.00049863,120]
[392081101,1761137494926,-1380.66,0.00049863,120]
[392081102,1761137494935,-777.97,0.00049863,120]
[392081103,1761137494944,-1069.18,0.00049863,120]
[392081104,1761137494953,-550.13,0.00049863,120]
[392081105,1761137494962,-657.62,0.00049863,120]
[392081106,1761137494972,-741.11,0.00049863,120]
[392081107,1761137494982,-546.69,0.00049863,120]
[392081108,1761137494991,-868.99,0.00049863,120]
[392081109,1761137495001,-749.46,0.00049863,120]
[392081110,1761137495011,-1632.62,0.00049863,120]
[392081111,1761137495020,-1268.92,0.00049863,120]
[392081112,1761137495029,-1515.76,0.00049863,120]
[392081113,1761137495039,-1021.54,0.00049863,120]
[392081114,1761137495048,-822.83,0.00049863,120]
[392081115,1761137495058,-234.23637766,0.000499,120]
[392081116,1761137495068,-234.23637759,0.000499,120]
[392081117,1761137495077,-234.23637759,0.000499,120]
[392081118,1761137495086,-234.23637759,0.000499,120]
[392081119,1761137495096,-234.23637759,0.000499,120]
[392081120,1761137495105,-234.23637759,0.000499,120]
[392081121,1761137495116,-234.23637759,0.000499,120]
[392081122,1761137495127,-234.23637759,0.000499,120]
[392081123,1761137495137,-234.23637759,0.000499,120]
[392081124,1761137495148,-234.23637759,0.000499,120]
[392081125,1761137495157,-487.41750861,0.00049999,120]
[392081126,1761137495167,-461.89909908,0.00049999,120]
[392081127,1761137495177,-380.01530316,0.00049999,15]
[392081128,1761137495194,-398.28319717,0.00049999,120]
[392081129,1761137495213,-466.57663764,0.00049999,120]
[392081130,1761137495232,-482.33040192,0.00049999,120]
[392081131,1761137495253,-446.00485301,0.00049999,7]
[392081132,1761137495269,-50000.0,0.0005,50]
[392081133,1761137495288,-1000000.0,0.0005,120]
[392081134,1761137495308,-222.0,0.0005,120]
[392081135,1761137495328,-1602.39187607,0.0005,7]
[392081136,1761137495346,-668.7,0.00050136,60]
[392081137,1761137495365,-504.50893048,0.00050136,120]
[392081138,1761137495384,-405.82441519,0.00050136,120]
[392081139,1761137495398,-678.3457082,0.00050136,120]
[392081140,1761137495417,-954.0456862,0.00050136,120]
[392081141,1761137495430,-1131.81687609,0.00050136,120]
[392081142,1761137495448,-538.47475196,0.00050136,120]
[392081143,1761137495464,-437.33718044,0.00050136,120]
[392081144,1761137495481,-1212.23215308,0.00050136,120]
[392081145,1761137495496,-971.68956721,0.00050136,120]
[392081146,1761137495511,-506.26,0.00050136,120]
[392081147,1761137495527,-787.54,0.00050136,120]
[392081148,1761137495543,-654.97,0.00050136,120]
[392081149,1761137495559,-609.74,0.00050136,120]
[392081150,1761137495574,-1546.95,0.00050136,120]
[392081151,1761137495596,-512.22500612,0.00050136,120]
[392081152,1761137495615,-585.06,0.00050136,120]
[392081153,1761137495633,-537.04,0.00050136,120]
[392081154,1761137495651,-1006.20402611,0.00050136,120]
[392081155,1761137495668,-768.8,0.00050136,120]
[392081156,1761137495685,-515.25744507,0.00050136,120]
[392081157,1761137495701,-888.76117556,0.00050136,120]
[392081158,1761137495719,-1783.87484866,0.00050136,120]
[392081159,1761137495737,-1005.0305115,0.00050136,120]
[392081160,1761137495747,-902.64,0.00050136,120]
[392081161,1761137495756,-797.80048385,0.00050136,120]
[392081162,1761137495765,-727.28,0.00050136,120]
[392081163,1761137495775,-596.54616495,0.00050136,30]
[392081164,1761137495788,-839.81022007,0.00050136,120]
[392081165,1761137495798,-1567.47389057,0.00050136,120]
[392081166,1761137495807,-978.84184871,0.00050136,120]
[392081167,1761137495816,-551.00680002,0.00050136,120]
[392081168,1761137495827,-1200.49506352,0.00050136,120]
[392081169,1761137495837,-805.07901198,0.00050136,120]
[392081170,1761137495847,-739.24344538,0.00050136,120]
[392081171,1761137495858,-771.27249725,0.00050136,120]
[392081172,1761137495867,-794.1,0.00050136,120]
[392081173,1761137495877,-1137.86557905,0.00050136,120]
[392081174,1761137495886,-936.01098154,0.00050136,120]
[392081175,1761137495896,-836.01092898,0.00050136,120]
[392081176,1761137495905,-1199.72414378,0.00050136,120]
[392081177,1761137495915,-696.33,0.00050136,120]
[392081178,1761137495924,-652.55450996,0.00050136,120]
[392081179,1761137495934,-1077.55061893,0.00050136,120]
[392081180,1761137495944,-1098.39937579,0.00050136,120]
[392081181,1761137495953,-866.83856258,0.00050136,120]
[392081182,1761137495967,-899.43786145,0.00050136,120]
[392081183,1761137495976,-683.85086819,0.00050136,120]
[392081184,1761137495987,-901.29734473,0.00050136,120]
[392081185,1761137495997,-1139.49972912,0.00050136,120]
[392081186,1761137496006,-978.8227583,0.00050136,120]
[392081187,1761137496016,-503.9068724,0.00050136,120]
[392081188,1761137496026,-1709.38916354,0.00050136,120]
[392081189,1761137496035,-1255.96323385,0.00050136,120]
[392081190,1761137496045,-599.12760788,0.00050136,120]
[392081191,1761137496055,-913.73,0.00050136,2]
[392081192,1761137496064,-788.31483412,0.00050136,120]
[392081193,1761137496073,-572.29,0.00050136,120]
[392081194,1761137496083,-1172.48,0.00050136,120]
[392081195,1761137496092,-822.39,0.00050136,120]
[392081196,1761137496102,-940.5923791,0.00050136,120]
[392081197,1761137496111,-1208.42,0.00050136,120]
[392081198,1761137496121,-647.93919044,0.00050136,120]
[392081199,1761137496130,-903.76603797,0.00050136,120]
[392081200,1761137496140,-701.42998846,0.00050136,120]
[392081201,1761137496149,-726.05234731,0.00050136,120]
[392081202,1761137496504,-1257.80255004,0.00050136,120]
[392081203,1761137496521,-1171.09083681,0.00050136,120]
[392081204,1761137496534,-966.54116884,0.00050136,120]
[392081205,1761137496544,-419.44024079,0.00050136,120]
[392081206,1761137496553,-793.36,0.00050136,120]
[392081207,1761137496562,-838.22,0.00050136,120]
[392081208,1761137496571,-650.43735993,0.00050136,120]
[392081209,1761137496580,-739.86,0.00050136,120]
[392081210,1761137496591,-1537.45479092,0.00050136,120]
[392081211,1761137496601,-1957.72342564,0.00050136,120]
[392081212,1761137496611,-728.53322736,0.00050136,120]
[392081213,1761137496620,-1020.84794343,0.00050136,120]
[392081214,1761137496630,-423.02601729,0.00050136,120]
[392081215,1761137496639,-1283.90154074,0.00050136,120]
[392081216,1761137496650,-507.31154255,0.00050136,120]
[392081217,1761137496659,-1791.91875164,0.00050136,120]
[392081218,1761137496670,-516.85571763,0.00050136,120]
[392081219,1761137496682,-1705.05689132,0.00050136,120]
[392081220,1761137496692,-774.63177751,0.00050136,120]
[392081221,1761137496701,-684.94151546,0.00050136,120]
[392081222,1761137496711,-903.57009382,0.00050136,120]
[392081223,1761137496720,-500.10452236,0.00050136,120]
[392081224,1761137496729,-1123.43015273,0.00050136,120]
[392081225,1761137496738,-976.02353192,0.00050136,120]
[392081226,1761137496748,-791.54530928,0.00050136,120]
[392081227,1761137496757,-1380.73921679,0.00050136,120]
[392081228,1761137496767,-778.01314988,0.00050136,120]
[392081229,1761137496777,-1069.18693913,0.00050136,120]
[392081230,1761137496796,-550.33399508,0.00050136,120]
[392081231,1761137496805,-657.69,0.00050136,120]
[392081232,1761137496815,-741.29,0.00050136,120]
[392081233,1761137496825,-546.77,0.00050136,120]
[392081234,1761137496834,-869.16031132,0.00050136,120]
[392081235,1761137496843,-749.5,0.00050136,120]
[392081236,1761137496852,-1632.68360226,0.00050136,120]
[392081237,1761137496862,-1268.9517187,0.00050136,120]
[392081238,1761137496871,-1515.9218311,0.00050136,120]
[392081239,1761137496880,-1021.74368691,0.00050136,120]
[392081240,1761137496890,-500.0,0.000504,2]
[392081241,1761137496899,-182.30789964,0.00050575,90]
[392081242,1761137496908,-163.0,0.000507,120]
[392081243,1761137496917,-270.5735801,0.00050976,120]
[392081244,1761137496927,-500000.0,0.00051,120]
[392081245,1761137496937,-153.0,0.000514,120]
[392081246,1761137496947,-557.12,0.00051866,120]
[392081247,1761137496958,-1200000.0,0.00052,120]
[392081248,1761137496968,-151.0,0.00052,120]
[392081249,1761137496978,-151.0,0.00052,120]
[392081250,1761137496991,-151.0,0.00052,120]
[392081251,1761137497001,-153.131654,0.00052,120]
[392081252,1761137497010,-151.0,0.00052,120]
[392081253,1761137497020,-151.0,0.00052,120]
[392081254,1761137497030,-151.0,0.00052,120]
[392081255,1761137497039,-151.0,0.00052,120]
[392081256,1761137497047,-151.0,0.00052,120]
[392081257,1761137497056,-154.695347,0.00052,120]
[392081258,1761137497065,-181.554853,0.00052,120]
[392081259,1761137497074,-1664.20274298,0.00052355,120]
[392081260,1761137497083,-600000.0,0.000525,120]
[392081261,1761137497093,-151.0,0.000525,120]
[392081262,1761137497102,-151.0,0.000525,120]
[392081263,1761137497111,-179.961111,0.000525,120]
[392081264,1761137497120,-189.213063,0.000525,120]
[392081265,1761137497130,-151.0,0.000525,120]
[392081266,1761137497139,-151.0,0.000525,120]
[392081267,1761137497149,-151.0,0.000525,120]
[392081268,1761137497159,-155.805367,0.000525,120]
[392081269,1761137497168,-159.612321,0.000525,120]
[392081270,1761137497176,-153.33427,0.000525,120]
[392081271,1761137497193,-155.119639,0.000525,120]
[392081272,1761137497203,-151.0,0.000525,120]
[392081273,1761137497212,-154.951755,0.000525,120]
[392081274,1761137497222,-151.0,0.000525,14]
[392081275,1761137497234,-156.382599,0.000525,120]
[392081276,1761137497245,-151.0,0.000525,120]
[392081277,1761137497255,-151.0,0.000525,120]
[392081278,1761137497265,-151.0,0.000525,120]
[392081279,1761137497275,-158.578338,0.000525,120]
[392081280,1761137497284,-269.25,0.00052632,2]
[392081281,1761137497294,-197.26721045,0.00052712,120]
[392081282,1761137497304,-429.66,0.00052755,97]
[392081283,1761137497313,-2079.09687142,0.00052892,10]
[392081284,1761137497322,-194.99,0.00054422,120]
[392081285,1761137497332,-293.78,0.0005477,11]
[392081286,1761137497342,-500.0,0.00054794,120]
[392081287,1761137497351,-500.0,0.00054794,120]
[392081288,1761137497360,-386.53840175,0.00054794,120]
[392081289,1761137497370,-1000.0,0.00054795,33]
[392081290,1761137497379,-1000000.0,0.00055,120]
[392081291,1761137497388,-1857.0,0.00055,120]
[392081292,1761137497398,-1856.0,0.00055,120]
[392081293,1761137497407,-200.13430289,0.00055,120]
[392081294,1761137497416,-1856.0,0.00055,120]
[392081295,1761137497425,-1142.63,0.0005507,5]
[392081296,1761137497435,-1000.0,0.000555,15]
[392081297,1761137497444,-1500.0,0.0005555,51]
[392081298,1761137497453,-394.0,0.000559,30]
[392081299,1761137497462,-153.0,0.000566,120]
[392081300,1761137497471,-2000.0,0.0005696,51]
[392081301,1761137497481,-356.65,0.00057,60]
[392081302,1761137497490,-2248.9,0.00057,30]
[392081303,1761137497500,-163.0,0.000573,120]
[392081304,1761137497509,-2000.0,0.0005786,50]
[392081305,1761137497519,-541.40032418,0.00057871,8]
[392081306,1761137497528,-1000000.0,0.00058,120]
[392081307,1761137497537,-10000.0,0.00058355,120]
[392081308,1761137497547,-2000.0,0.0005863,55]
[392081309,1761137497556,-500.0,0.000588,120]
[392081310,1761137497564,-400000.0,0.00059,120]
[392081311,1761137497574,-7230.91,0.00059,30]
[392081312,1761137497583,-7012.6,0.00059,30]
[392081313,1761137497592,-250.0,0.00059,30]
[392081314,1761137497601,-269.25,0.0005912,2]
[392081315,1761137497610,-194.99,0.00059403,120]
[392081316,1761137497619,-1500.0,0.0005986,49]
[392081317,1761137497628,-500000.0,0.0006,120]
[392081318,1761137497637,-907.95585152,0.0006,2]
[392081319,1761137497646,-150.0,0.0006,120]
[392081320,1761137497656,-200.0,0.0006,90]
[392081321,1761137497665,-2000.0,0.0006,120]
[392081322,1761137497675,-700000.0,0.0006,120]
[392081323,1761137497685,-250.0,0.0006,120]
[392081324,1761137497695,-250.0,0.0006,120]
[392081325,1761137497704,-151.0,0.0006,120]
[392081326,1761137497715,-174.486188,0.0006,120]
[392081327,1761137497724,-151.0,0.0006,120]
[392081328,1761137497734,-154.242662,0.0006,120]
[392081329,1761137497746,-159.909834,0.0006,120]
[392081330,1761137497755,-151.0,0.0006,120]
[392081331,1761137497764,-156.786455,0.0006,120]
[392081332,1761137497773,-153.903214,0.0006,120]
[392081333,1761137497787,-216.351168,0.0006,120]
[392081334,1761137497796,-155.145947,0.0006,120]
[392081335,1761137497806,-151.0,0.0006,120]
[392081336,1761137497815,-163.189812,0.0006,120]
[392081337,1761137497825,-155.953113,0.0006,120]
[392081338,1761137497837,-151.392693,0.0006,120]
[392081339,1761137497846,-162.984859,0.0006,120]
[392081340,1761137497855,-153.282994,0.0006,120]
[392081341,1761137497868,-151.0,0.0006,120]
[392081342,1761137497878,-151.0,0.0006,120]
[392081343,1761137497888,-151.0,0.0006,120]
[392081344,1761137497898,-151.0,0.0006,120]
[392081345,1761137497909,-156.090513,0.0006,120]
[392081346,1761137497920,-152.767338,0.0006,120]
[392081347,1761137497931,-154.164547,0.0006,120]
[392081348,1761137497940,-153.513075,0.0006,120]
[392081349,1761137497950,-165.000615,0.0006,120]
[392081350,1761137497959,-183.434982,0.0006,120]
[392081351,1761137497970,-153.352827,0.0006,120]
[392081352,1761137497981,-154.65923,0.0006,120]
[392081353,1761137497990,-165.234667,0.0006,120]
[392081354,1761137498000,-151.0,0.0006,120]
[392081355,1761137498009,-168.171519,0.0006,120]
[392081356,1761137498018,-156.324111,0.0006,120]
[392081357,1761137498027,-151.0,0.0006,120]
[392081358,1761137498037,-299.948754,0.0006,120]
[392081359,1761137498046,-154.012218,0.0006,120]
[392081360,1761137498055,-153.156574,0.0006,120]
[392081361,1761137498065,-155.814294,0.0006,120]
[392081362,1761137498075,-159.087305,0.0006,120]
[392081363,1761137498084,-154.951503,0.0006,120]
[392081364,1761137498094,-156.052363,0.0006,120]
[392081365,1761137498104,-151.0,0.0006,120]
[392081366,1761137498113,-151.0,0.0006,120]
[392081367,1761137498123,-158.913017,0.0006,120]
[392081368,1761137498132,-155.190317,0.0006,120]
[392081369,1761137498142,-154.740047,0.0006,120]
[392081370,1761137498152,-183.509894,0.0006,30]
[392081371,1761137498161,-154.124881,0.0006,120]
[392081372,1761137498170,-183.509894,0.0006,30]
[392081373,1761137498179,-151.0,0.0006,120]
[392081374,1761137498189,-183.509894,0.0006,30]
[392081375,1761137498198,-183.509894,0.0006,30]
[392081376,1761137498208,-156.704252,0.0006,120]
[392081377,1761137498218,-1000.0,0.00060274,35]
[392081378,1761137498228,-450000.0,0.00061,120]
[392081379,1761137498238,-394.98723823,0.000614,30]
[392081380,1761137498248,-153.0,0.000617,120]
[392081381,1761137498258,-5390.49402707,0.000618,120]
[392081382,1761137498268,-1000000.0,0.00062,120]
[392081383,1761137498278,-151.0,0.00062,120]
[392081384,1761137498288,-152.252612,0.00062,120]
[392081385,1761137498298,-155.446833,0.00062,120]
[392081386,1761137498307,-151.0,0.00062,120]
[392081387,1761137498317,-244.933845,0.00062,120]
[392081388,1761137498327,-155.810945,0.00062,120]
[392081389,1761137498337,-151.0,0.00062,120]
[392081390,1761137498347,-151.0,0.00062,120]
[392081391,1761137498356,-151.0,0.00062,120]
[392081392,1761137498366,-155.328937,0.00062,120]
[392081393,1761137498375,-151.0,0.00062,120]
[392081394,1761137498385,-166.553835,0.00062,120]
[392081395,1761137498394,-153.512238,0.00062,120]
[392081396,1761137498404,-151.0,0.00062,14]
[392081397,1761137498414,-151.0,0.00062,120]
[392081398,1761137498424,-151.0,0.00062,120]
[392081399,1761137498433,-151.0,0.00062,120]
[392081400,1761137498445,-157.027548,0.00062,120]
[392081401,1761137498454,-153.266632,0.00062,120]
[392081402,1761137498464,-151.0,0.00062,120]
[392081403,1761137498474,-151.0,0.00062,120]
[392081404,1761137498483,-151.0,0.00062,120]
[392081405,1761137498493,-151.0,0.00062,120]
[392081406,1761137498512,-151.0,0.00062,120]
[392081407,1761137498524,-3174.18188651,0.000621,120]
[392081408,1761137498533,-163.0,0.000639,120]
[392081409,1761137498542,-194.99,0.00064385,120]
[392081410,1761137498551,-500000.0,0.00065,120]
[392081411,1761137498560,-3000.0,0.0006536,49]
[392081412,1761137498570,-269.25,0.00065609,2]
[392081413,1761137498580,-1000.0,0.00065753,120]
[392081414,1761137498590,-2248.9,0.00066,30]
[392081415,1761137498599,-600.0,0.000666,15]
[392081416,1761137498609,-153.0,0.000668,120]
[392081417,1761137498619,-2000.0,0.0006844,63]
[392081418,1761137498628,-12331.8624098,0.00068526,120]
[392081419,1761137498638,-2000.0,0.0006863,55]
[392081420,1761137498649,-250.97,0.00069,60]